[Event "Uhlenkoeper-Open 2024"]
[Site "Uelzen"]
[Date "2024.12.29"]
[Round "5.2"]
[White "von Estorff, Jacob"]
[Black "Glek, Igor"]
[Result "1/2-1/2"]
[ECO "B34"]
[WhiteElo "2209"]
[BlackElo "2431"]
[Annotator "RC"]
[PlyCount "130"]
[EventDate "2024.12.27"]
[EventType "swiss"]
[EventCountry "GER"]
[SourceTitle "playchess.com"]
[Source "ChessBase"]
[SourceQuality "1"]
[TimeControl "40/5400+30:1800+30"]

1. e4 {[%emt 0:00:06]} c5 {[%emt 0:07:19]} 2. Nf3 {[%emt 0:00:38]} Nc6 {[%emt 0:00:07]} 3. d4 {[%emt 0:03:07]} cxd4 {[%emt 0:00:05]} 4. Nxd4 {[%emt 0:00:04]} g6 {[%emt 0:00:45]} 5. Nc3 {[%emt 0:01:46]} Bg7 {[%emt 0:00:16]} 6. Be3 {[%emt 0:00:16]} Nf6 {[%emt 0:00:07]} 7. Nxc6 {[%emt 0:06:37]} dxc6 {[%emt 0:00:38]} 8. Qxd8+ {[%emt 0:01:30]} Kxd8 {[%emt 0:00:05]} 9. O-O-O+ {[%emt 0:07:02]} Ke8 {[%emt 0:00:13]} 10. Bd4 {[%emt 0:01:55]} Be6 {[%emt 0:01:47]} 11. a4 {[%emt 0:02:58]} a5 {[%emt 0:09:36]} 12. Be2 {[%emt 0:05:21]} h5 {[%emt 0:15:40]} 13. f4 {[%emt 0:14:12]} Kf8 {[%emt 0:05:58]} 14. Rhf1 {[%emt 0:04:00]} Bg4 {[%emt 0:00:15]} 15. Rf2 {[%emt 0:07:38]} Ne8 {[%emt 0:02:45]} 16. e5 {[%emt 0:06:31]} Nc7 {[%emt 0:00:11]} 17. Bb6 {[%emt 0:01:20]} Ne6 {[%emt 0:00:23]} 18. Rd7 {[%emt 0:11:23]} Rb8 {[%emt 0:01:48]} 19. Bxg4 {[%emt 0:03:28]} hxg4 {[%emt 0:00:08]} 20. g3 {[%emt 0:00:14]} Ke8 {[%emt 0:00:25]} 21. Rfd2 {[%emt 0:03:56]} Rxh2 {[%emt 0:00:28]} 22. Rxe7+ {[%emt 0:00:12]} Kxe7 {[%emt 0:00:02]} 23. Rxh2 {[%emt 0:00:06]} Ra8 {[%emt 0:02:52]} 24. Rh4 {[%emt 0:01:11]} g5 {[%emt 0:16:28]} 25. Rxg4 {[%emt 0:02:47]} gxf4 {[%emt 0:00:23]} 26. gxf4 {[%emt 0:00:08]} f5 {[%emt 0:00:12]} 27. exf6+ {[%emt 0:04:08]} Kxf6 {[%emt 0:01:31]} 28. Rh4 {[%emt 0:00:56]} Kg6 {[%emt 0:01:46]} 29. Ne4 {[%emt 0:04:55]} Bd4 {[%emt 0:22:23]} 30. Bxd4 {[%emt 0:02:57]} Nxd4 {[%emt 0:00:05]} 31. c3 {[%emt 0:01:42]} Re8 {[%emt 0:02:32]} 32. Ng5 {[%emt 0:02:16]} Nb3+ {[%emt 0:06:11]} 33. Kc2 {[%emt 0:00:02]} Nc5 {[%emt 0:00:06]} 34. Nf3 {[%emt 0:00:25]} Re2+ {[%emt 0:00:29]} 35. Kb1 {[%emt 0:00:10]} Nd3 {[%emt 0:01:38]} 36. Ne5+ {[%emt 0:01:45]} Nxe5 {[%emt 0:00:10]} 37. fxe5 {[%emt 0:00:04]} Rxe5 {[%emt 0:00:15]} 38. Rf4 {[%emt 0:00:50]} b5 {[%emt 0:01:58]} 39. Kc2 {[%emt 0:00:28]} Rd5 {[%emt 0:01:29]} 40. Kb3 {[%emt 0:00:16]} Rd2 {[%emt 0:00:21]} 41. Ka3 {[%emt 0:30:53]} Kg5 {[%emt 0:30:15]} 42. Rf8 {[%emt 0:00:43]} Rd1 {[%emt 0:00:00]} 43. Kb3 {[%emt 0:00:00]} bxa4+ {[%emt 0:00:00]} 44. Kxa4 {[%emt 0:00:00]} Ra1+ {[%emt 0:00:00]} 45. Kb3 {[%emt 0:00:00]} a4+ {[%emt 0:00:00]} 46. Kc4 {[%emt 0:00:00]} Rb1 {[%emt 0:00:00]} 47. Rf2 {[%emt 0:00:00]} Ra1 {[%emt 0:00:00]} 48. Rf8 {[%emt 0:00:00]} Rb1 {[%emt 0:00:00]} 49. Rb8 {[%emt 0:00:00]} a3 {[%emt 0:00:00]} 50. Rg8+ {[%emt 0:00:00]} Kf6 {[%emt 0:00:00]} 51. bxa3 {[%emt 0:00:00]} Ke7 {[%emt 0:00:00]} 52. a4 {[%emt 0:00:00]} Ra1 {[%emt 0:00:00]} 53. Kb4 {[%emt 0:00:00]} Kd6 {[%emt 0:00:00]} 54. Rg6+ {[%emt 0:00:00]} Kc7 {[%emt 0:00:00]} 55. Kc5 {[%emt 0:01:18]} Rxa4 {[%emt 0:00:00]} 56. Rxc6+ {[%emt 0:00:20]} Kb7 {[%emt 0:00:00]} 57. Rh6 {[%emt 0:01:05]} Ra5+ {[%emt 0:00:00]} 58. Kb4 {[%emt 0:00:07]} Rg5 {[%emt 0:00:00]} 59. c4 {[%emt 0:00:15]} Kc7 {[%emt 0:00:00]} 60. Rf6 {[%emt 0:01:01]} Rh5 {[%emt 0:00:00]} 61. Ra6 {[%emt 0:00:33]} Rg5 {[%emt 0:00:00]} 62. Ra1 {[%emt 0:00:18]} Kb6 {[%emt 0:00:00]} 63. Rh1 {[%emt 0:00:12]} Kc6 {[%emt 0:00:00]} 64. Rh6+ {[%emt 0:00:04]} Kc7 {[%emt 0:00:00]} 65. c5 {[%emt 0:00:06]} Rg1 {[%emt 0:00:00]} 1/2-1/2

[Event "Uhlenkoeper-Open 2024"]
[Site "Uelzen"]
[Date "2024.12.29"]
[Round "5.3"]
[White "Parvanyan, Ashot"]
[Black "Stopa, Jacek"]
[Result "1/2-1/2"]
[ECO "A49"]
[WhiteElo "2399"]
[BlackElo "2323"]
[Annotator "TA"]
[PlyCount "36"]
[EventDate "2024.12.27"]
[EventType "swiss"]
[EventCountry "GER"]
[SourceTitle "playchess.com"]
[Source "ChessBase"]
[SourceQuality "1"]
[TimeControl "40/5400+30:1800+30"]

{[%evp 20,36,10,1,0,12,16,0,0,0,2,0,-10,0,0,9,8,0,7]} 1. Nf3 {[%emt 0:00:07]} Nf6 {[%emt 0:00:14]} 2. c4 {[%emt 0:00:19]} c6 {[%emt 0:00:13]} 3. d4 {[%emt 0:01:28]} d5 {[%emt 0:00:06]} 4. g3 {[%emt 0:00:24]} g6 {[%emt 0:00:07]} 5. Bg2 {[%emt 0:00:12]} Bg7 {[%emt 0:00:05]} 6. O-O {[%emt 1:31:00]} O-O {[%emt 0:00:04]} 7. b3 {[%emt 0:00:00]} dxc4 {[%emt 0:00:05]} 8. bxc4 {[%emt 0:00:00]} c5 {[%emt 0:00:05]} 9. Bb2 {[%emt 0:00:00]} cxd4 {[%emt 0:00:05]} 10. Nxd4 {[%emt 0:00:00]} Qb6 {[%emt 0:00:06]} 11. Qc1 {[%emt 0:00:00] The position is equal.} Bd7 {[%emt 0:00:06]} 12. Nd2 {[%emt 0:00:00]} Nc6 {[%emt 0:01:25]} 13. N2b3 {[%emt 0:00:00]} Nxd4 {[%emt 0:11:53]} 14. Bxd4 {[%emt 0:00:00]} Qc7 {[%emt 0:00:05]} 15. Qa3 {[%emt 0:00:00]} Bc6 {[%emt 0:14:43]} 16. Bxc6 {[%emt 0:00:00]} (16. Bxa7 $2 {too greedy.} Bxg2 17. Kxg2 b6 $19 (17... Qxc4 $2 18. Rac1 $19)) 16... bxc6 {[%emt 0:01:59]} 17. Rfd1 {[%emt 0:00:00]} a5 {[%emt 0:06:34]} 18. Rab1 {[%emt 0:00:00]} Rfb8 {[%emt 0:07:19] A rather calm draw.   Weighted Error Value: White=0.04 (flawless) /Black=0.01 (flawless) .  OK:         	White=1     	Black=2} 1/2-1/2

[Event "Uhlenkoeper-Open 2024"]
[Site "Uelzen"]
[Date "2024.12.29"]
[Round "5.4"]
[White "Bogomolow, Sergej"]
[Black "Buergener, Richard"]
[Result "1/2-1/2"]
[ECO "C90"]
[WhiteElo "2090"]
[BlackElo "1857"]
[Annotator "NA RC"]
[PlyCount "72"]
[EventDate "2024.12.27"]
[EventType "swiss"]
[EventCountry "GER"]
[SourceTitle "playchess.com"]
[Source "ChessBase"]
[SourceQuality "1"]
[TimeControl "40/5400+30:1800+30"]

1. e4 {[%emt 0:00:04]} e5 {[%emt 0:00:04]} 2. Nf3 {[%emt 0:00:03]} Nc6 {[%emt 0:00:07]} 3. Bb5 {[%emt 0:00:15]} a6 {[%emt 0:00:05]} 4. Ba4 {[%emt 0:00:03]} Nf6 {[%emt 0:00:09]} 5. O-O {[%emt 0:00:07]} Be7 {[%emt 0:00:07]} 6. Re1 {[%emt 0:00:08]} b5 {[%emt 0:00:09]} 7. Bb3 {[%emt 0:00:06]} O-O {[%emt 0:00:09]} 8. d3 {[%emt 0:02:52]} d6 {[%emt 0:05:53]} 9. c3 {[%emt 0:00:06]} Na5 {[%emt 0:06:10]} 10. Bc2 {[%emt 0:01:34]} c5 {[%emt 0:00:20]} 11. Nbd2 {[%emt 0:01:06]} Be6 {[%emt 0:03:20]} 12. Nf1 {[%emt 0:07:30]} Nc6 {[%emt 0:05:57]} 13. Ng3 {[%emt 0:15:13]} Qc7 {[%emt 0:09:05]} 14. a4 {[%emt 0:05:16]} b4 {[%emt 0:16:03]} 15. Ng5 {[%emt 0:13:36]} Bg4 {[%emt 0:06:14]} 16. f3 {[%emt 0:01:52]} Bd7 {[%emt 0:01:51]} 17. f4 {[%emt 0:02:22]} Qb6 {[%emt 0:12:00]} 18. h3 {[%emt 0:16:09]} b3 {[%emt 0:08:03]} 19. Bb1 {[%emt 0:01:12]} Rab8 {[%emt 0:02:50]} 20. Nf5 {[%emt 0:07:53]} Qd8 {[%emt 0:05:28]} 21. Nf3 {[%emt 0:04:09]} g6 {[%emt 0:03:06]} 22. Nh6+ {[%emt 0:03:43]} Kg7 {[%emt 0:00:27]} 23. f5 {[%emt 0:00:27]} Qc7 {[%emt 0:06:49]} 24. g4 {[%emt 0:01:51]} Ng8 {[%emt 0:02:15]} 25. Qd2 {[%emt 0:01:06]} Nxh6 {[%emt 0:02:31]} 26. Qxh6+ {[%emt 0:00:07]} Kg8 {[%emt 0:00:32]} 27. Bg5 {[%emt 0:05:48]} Qd8 {[%emt 0:00:50]} 28. Rf1 {[%emt 0:02:28]} Be8 {[%emt 0:00:34]} 29. Bxe7 {[%emt 0:02:58]} Qxe7 {[%emt 0:00:11]} 30. Ng5 {[%emt 0:00:13]} f6 {[%emt 0:00:07]} 31. Ne6 {[%emt 0:00:04]} Rf7 {[%emt 0:00:58]} 32. d4 {[%emt 0:02:39]} cxd4 {[%emt 0:01:39]} 33. Bd3 {[%emt 0:00:24]} dxc3 {[%emt 0:00:19]} 34. bxc3 {[%emt 0:00:03]} Na5 {[%emt 0:01:43]} 35. Bxa6 {[%emt 0:01:17]} Qa7+ {[%emt 0:00:37]} 36. Kg2 {[%emt 0:00:20]} Qxa6 {[%emt 0:00:30]} 1/2-1/2

[Event "Uhlenkoeper-Open 2024"]
[Site "Uelzen"]
[Date "2024.12.29"]
[Round "5.7"]
[White "Buecklers, Martin"]
[Black "Bargsten, Justus"]
[Result "0-1"]
[ECO "D02"]
[WhiteElo "1859"]
[BlackElo "2228"]
[Annotator "ChessBase"]
[PlyCount "64"]
[EventDate "2024.12.27"]
[EventType "swiss"]
[EventCountry "GER"]
[SourceTitle "playchess.com"]
[Source "ChessBase"]
[SourceQuality "1"]
[TimeControl "40/5400+30:1800+30"]

1. Nf3 {[%emt 0:00:22]} d5 {[%emt 0:00:05]} 2. g3 {[%emt 0:01:00]} Nc6 {[%emt 0:00:05]} 3. d4 {[%emt 0:00:31]} Bf5 {[%emt 0:00:05]} 4. Bg2 {[%emt 0:02:18]} Nb4 {[%emt 0:00:06]} 5. Na3 {[%emt 0:00:29]} e6 {[%emt 0:00:05]} 6. c3 {[%emt 0:02:33]} Nc6 {[%emt 0:00:10]} 7. b3 {[%emt 0:07:44]} Be7 {[%emt 0:00:07]} 8. Bb2 {[%emt 0:02:08]} h5 {[%emt 0:00:48]} 9. Nd2 {[%emt 0:04:48]} Nf6 {[%emt 0:01:06]} 10. h4 {[%emt 0:08:26]} Qd7 {[%emt 0:04:34]} 11. f3 {[%emt 0:12:46]} e5 {[%emt 0:02:47]} 12. Nc2 {[%emt 0:01:07]} exd4 {[%emt 0:02:36]} 13. cxd4 {[%emt 0:01:49]} Bd6 {[%emt 0:00:08]} 14. f4 {[%emt 0:03:32]} Qe6 {[%emt 0:02:16]} 15. a3 {[%emt 0:05:47]} O-O-O {[%emt 0:02:01]} 16. Nf1 {[%emt 0:00:39]} Ng4 {[%emt 0:01:45]} 17. Bf3 {[%emt 0:02:17]} Ne7 {[%emt 0:06:38]} 18. Qd2 {[%emt 0:03:15]} Ng8 {[%emt 0:07:07]} 19. Nce3 {[%emt 0:01:04]} N8f6 {[%emt 0:03:03]} 20. Nxf5 {[%emt 0:04:57]} Qxf5 {[%emt 0:00:09]} 21. e3 {[%emt 0:01:57]} Ne4 {[%emt 0:00:36]} 22. Qg2 {[%emt 0:00:58]} Nef2 {[%emt 0:03:14]} 23. Bxg4 {[%emt 0:01:13]} Nxg4 {[%emt 0:00:06]} 24. Kd2 {[%emt 0:02:23]} Rde8 {[%emt 0:00:38]} 25. Re1 {[%emt 0:00:06]} Rh6 {[%emt 0:02:33]} 26. Nh2 {[%emt 0:02:53]} Nf6 {[%emt 0:00:18]} 27. Nf3 {[%emt 0:00:48]} Ne4+ {[%emt 0:00:47]} 28. Kc1 {[%emt 0:02:59]} Bf8 {[%emt 0:09:38]} 29. Ng5 {[%emt 0:05:07]} Rc6+ {[%emt 0:00:11]} 30. Kd1 {[%emt 0:01:18]} Nxg5 {[%emt 0:00:52]} 31. hxg5 {[%emt 0:01:11]} Qd3+ {[%emt 0:00:46]} 32. Qd2 {[%emt 0:00:14]} Qxb3+ {[%emt 0:00:06]} 0-1

[Event "Uhlenkoeper-Open 2024"]
[Site "Uelzen"]
[Date "2024.12.29"]
[Round "5.8"]
[White "Nyenhuis, Yannek"]
[Black "Weigand, Anton"]
[Result "1/2-1/2"]
[ECO "E19"]
[WhiteElo "1943"]
[BlackElo "2092"]
[Annotator "NA"]
[PlyCount "80"]
[EventDate "2024.12.27"]
[EventType "swiss"]
[EventCountry "GER"]
[SourceTitle "playchess.com"]
[Source "ChessBase"]
[SourceQuality "1"]
[TimeControl "40/5400+30:1800+30"]

1. d4 {[%emt 0:00:04]} Nf6 {[%emt 0:00:09]} 2. c4 {[%emt 0:00:06]} e6 {[%emt 0:00:03]} 3. Nf3 {[%emt 0:00:11]} b6 {[%emt 0:00:11]} 4. g3 {[%emt 0:00:09]} Bb7 {[%emt 0:00:06]} 5. Bg2 {[%emt 0:00:17]} Be7 {[%emt 0:00:07]} 6. O-O {[%emt 0:00:14]} O-O {[%emt 0:00:07]} 7. Nc3 {[%emt 0:00:03]} Ne4 {[%emt 0:00:21]} 8. Qc2 {[%emt 0:06:26]} Nxc3 {[%emt 0:00:09]} 9. Qxc3 {[%emt 0:01:26]} d6 {[%emt 0:00:14]} 10. b3 {[%emt 0:01:41]} Nd7 {[%emt 0:00:08]} 11. Bb2 {[%emt 0:00:13]} Be4 {[%emt 0:00:45]} 12. Rac1 {[%emt 0:04:26]} f5 {[%emt 0:03:44]} 13. Rfd1 {[%emt 0:00:55]} Qe8 {[%emt 0:00:06]} 14. Qe3 {[%emt 0:06:02]} Qg6 {[%emt 0:04:08]} 15. Ne1 {[%emt 0:06:44]} Bg5 {[%emt 0:04:05]} 16. f4 {[%emt 0:00:53]} Bxg2 {[%emt 0:00:03]} 17. Kxg2 {[%emt 0:01:52]} Be7 {[%emt 0:02:39]} 18. Nf3 {[%emt 0:02:26]} Rae8 {[%emt 0:00:27]} 19. Qd3 {[%emt 0:02:31]} Nf6 {[%emt 0:04:29]} 20. d5 {[%emt 0:04:13]} Ne4 {[%emt 0:02:00]} 21. dxe6 {[%emt 0:01:28]} Bf6 {[%emt 0:02:30]} 22. Bxf6 {[%emt 0:01:13]} Qxf6 {[%emt 0:00:04]} 23. Nd4 {[%emt 0:15:39]} Nc5 {[%emt 0:00:42]} 24. Qf3 {[%emt 0:00:55]} Nxe6 {[%emt 0:00:34]} 25. Qd5 {[%emt 0:06:19]} Kh8 {[%emt 0:00:51]} 26. Nxe6 {[%emt 0:01:02]} Rxe6 {[%emt 0:04:26]} 27. Rd2 {[%emt 0:00:31]} Rfe8 {[%emt 0:00:42]} 28. Re1 {[%emt 0:00:59]} a5 {[%emt 0:00:47]} 29. Kf2 {[%emt 0:00:54]} h6 {[%emt 0:00:25]} 30. e3 {[%emt 0:00:15]} Re4 {[%emt 0:08:13]} 31. Rde2 {[%emt 0:02:13]} Qe6 {[%emt 0:00:39]} 32. Qxe6 {[%emt 0:00:50]} R8xe6 {[%emt 0:00:03]} 33. Rd2 {[%emt 0:00:52]} Kg8 {[%emt 0:00:34]} 34. Rd4 {[%emt 0:02:02]} Kf7 {[%emt 0:00:08]} 35. Rxe4 {[%emt 0:00:14]} Rxe4 {[%emt 0:00:05]} 36. Kf3 {[%emt 0:00:19]} g5 {[%emt 0:11:06]} 37. h3 {[%emt 0:04:02]} Kf6 {[%emt 0:00:39]} 38. Rd1 {[%emt 0:00:54]} Re8 {[%emt 0:04:12]} 39. Rd5 {[%emt 0:04:01]} gxf4 {[%emt 0:03:29]} 40. Kxf4 {[%emt 0:02:57]} Re4+ {[%emt 0:46:20]} 1/2-1/2

[Event "Uhlenkoeper-Open 2024"]
[Site "Uelzen"]
[Date "2024.12.29"]
[Round "5.9"]
[White "Sayas Payyappat"]
[Black "Dehn, Marcus"]
[Result "0-1"]
[ECO "A05"]
[WhiteElo "1823"]
[BlackElo "2053"]
[Annotator "NA"]
[PlyCount "60"]
[EventDate "2024.12.27"]
[EventType "swiss"]
[EventCountry "GER"]
[SourceTitle "playchess.com"]
[Source "ChessBase"]
[SourceQuality "1"]
[TimeControl "40/5400+30:1800+30"]

1. b3 {[%emt 0:00:07]} Nf6 {[%emt 0:01:44]} 2. Bb2 {[%emt 0:00:15]} d6 {[%emt 0:00:20]} 3. Nf3 {[%emt 0:00:58]} g6 {[%emt 0:00:10]} 4. e4 {[%emt 0:02:50]} Bg7 {[%emt 0:01:37]} 5. Be2 {[%emt 0:02:01]} O-O {[%emt 0:00:59]} 6. d3 {[%emt 0:00:17]} c5 {[%emt 0:02:16]} 7. O-O {[%emt 0:03:08]} Nc6 {[%emt 0:01:58]} 8. Nbd2 {[%emt 0:02:37]} Ne8 {[%emt 0:02:05]} 9. Bxg7 {[%emt 0:03:47]} Nxg7 {[%emt 0:00:53]} 10. Nc4 {[%emt 0:00:29]} b5 {[%emt 0:05:51]} 11. Ne3 {[%emt 0:00:16]} Bb7 {[%emt 0:00:11]} 12. Qd2 {[%emt 0:03:19]} Nd4 {[%emt 0:06:27]} 13. Rfe1 {[%emt 0:03:44]} Nxe2+ {[%emt 0:03:46]} 14. Rxe2 {[%emt 0:00:52]} f5 {[%emt 0:01:00]} 15. Ng5 {[%emt 0:04:26]} e6 {[%emt 0:07:39]} 16. Nh3 {[%emt 0:05:54]} f4 {[%emt 0:05:00]} 17. Nf1 {[%emt 0:12:05]} f3 {[%emt 0:06:41]} 18. gxf3 {[%emt 0:04:06]} Qh4 {[%emt 0:01:29]} 19. Kg2 {[%emt 0:01:16]} Qf6 {[%emt 0:00:08]} 20. Re3 {[%emt 0:09:42]} Qxa1 {[%emt 0:00:49]} 21. c3 {[%emt 0:00:13]} b4 {[%emt 0:00:43]} 22. d4 {[%emt 0:01:32]} Rac8 {[%emt 0:05:02]} 23. Rd3 {[%emt 0:07:12]} Rf7 {[%emt 0:09:27]} 24. dxc5 {[%emt 0:02:42]} bxc3 {[%emt 0:04:51]} 25. Qh6 {[%emt 0:13:55]} c2 {[%emt 0:11:49]} 26. Ng5 {[%emt 0:00:54]} c1=Q {[%emt 0:00:48]} 27. Ng3 {[%emt 0:02:23]} Qxg5 {[%emt 0:02:32]} 28. Qxg5 {[%emt 0:00:07]} Qf6 {[%emt 0:00:13]} 29. Qxf6 {[%emt 0:00:26]} Rxf6 {[%emt 0:00:06]} 30. cxd6 {[%emt 0:00:03]} e5 {[%emt 0:00:25]} 0-1

[Event "Uhlenkoeper-Open 2024"]
[Site "Uelzen"]
[Date "2024.12.29"]
[Round "5.10"]
[White "Wilk, Clemens"]
[Black "Koenig, Felix"]
[Result "1-0"]
[ECO "E57"]
[WhiteElo "1869"]
[BlackElo "1715"]
[Annotator "NA"]
[PlyCount "83"]
[EventDate "2024.12.27"]
[EventType "swiss"]
[EventCountry "GER"]
[SourceTitle "playchess.com"]
[Source "ChessBase"]
[SourceQuality "1"]
[TimeControl "40/5400+30:1800+30"]

1. d4 {[%emt 0:00:02]} d5 {[%emt 0:00:08]} 2. c4 {[%emt 0:00:06]} e6 {[%emt 0:00:06]} 3. Nc3 {[%emt 0:00:09]} c5 {[%emt 0:00:08]} 4. e3 {[%emt 0:02:30]} Nf6 {[%emt 0:05:42]} 5. Nf3 {[%emt 0:00:32]} Nc6 {[%emt 0:01:51]} 6. a3 {[%emt 0:00:59]} dxc4 {[%emt 0:09:30]} 7. Bxc4 {[%emt 0:00:21]} cxd4 {[%emt 0:00:11]} 8. exd4 {[%emt 0:00:21]} Be7 {[%emt 0:01:00]} 9. O-O {[%emt 0:09:59]} O-O {[%emt 0:04:09]} 10. Qd3 {[%emt 0:00:07]} a6 {[%emt 0:01:49]} 11. Bg5 {[%emt 0:05:26]} b5 {[%emt 0:02:04]} 12. Ba2 {[%emt 0:00:09]} Bb7 {[%emt 0:00:59]} 13. Rad1 {[%emt 0:02:16]} Rc8 {[%emt 0:10:59]} 14. Bb1 {[%emt 0:15:40]} g6 {[%emt 0:00:55]} 15. Ne5 {[%emt 0:05:02]} Nxe5 {[%emt 0:03:24]} 16. dxe5 {[%emt 0:00:13]} Qxd3 {[%emt 0:02:49]} 17. Rxd3 {[%emt 0:00:16]} Nd5 {[%emt 0:03:04]} 18. Bxe7 {[%emt 0:02:46]} Nxe7 {[%emt 0:00:44]} 19. Rd7 {[%emt 0:00:11]} Bc6 {[%emt 0:01:40]} 20. Rxe7 {[%emt 0:00:40]} Rfd8 {[%emt 0:00:21]} 21. f3 {[%emt 0:04:19]} Bd7 {[%emt 0:00:25]} 22. Rd1 {[%emt 0:01:30]} Rc7 {[%emt 0:00:23]} 23. Kf2 {[%emt 0:01:37]} Kf8 {[%emt 0:00:27]} 24. Rexd7 {[%emt 0:00:10]} Rcxd7 {[%emt 0:00:12]} 25. Rxd7 {[%emt 0:00:12]} Rxd7 {[%emt 0:00:08]} 26. Ke3 {[%emt 0:00:15]} Ke7 {[%emt 0:00:55]} 27. Bd3 {[%emt 0:03:14]} f6 {[%emt 0:01:43]} 28. exf6+ {[%emt 0:01:49]} Kxf6 {[%emt 0:00:15]} 29. Ne4+ {[%emt 0:00:16]} Ke7 {[%emt 0:02:49]} 30. Nc5 {[%emt 0:00:11]} Rd6 {[%emt 0:01:26]} 31. h4 {[%emt 0:03:29]} Kf7 {[%emt 0:03:46]} 32. Ke4 {[%emt 0:01:22]} Kf6 {[%emt 0:02:33]} 33. g4 {[%emt 0:01:15]} Rc6 {[%emt 0:05:37]} 34. b4 {[%emt 0:01:37]} Rd6 {[%emt 0:03:53]} 35. Ke3 {[%emt 0:03:21]} Ke7 {[%emt 0:02:47]} 36. Bc2 {[%emt 0:04:05]} Rc6 {[%emt 0:05:53]} 37. Bb3 {[%emt 0:00:53]} Kd6 {[%emt 0:00:22]} 38. Kd4 {[%emt 0:02:29]} a5 {[%emt 0:02:20]} 39. Bxe6 {[%emt 0:05:59]} Rxc5 {[%emt 0:00:50]} 40. bxc5+ {[%emt 0:00:09]} Kxe6 {[%emt 0:00:06]} 41. f4 {[%emt 0:30:23]} h6 {[%emt 0:33:17]} 42. h5 {[%emt 0:01:26]} 1-0

[Event "Uhlenkoeper-Open 2024"]
[Site "Uelzen"]
[Date "2024.12.29"]
[Round "6.1"]
[White "Bagrationi, Alexander"]
[Black "von Estorff, Jacob"]
[Result "1/2-1/2"]
[ECO "E16"]
[WhiteElo "2384"]
[BlackElo "2209"]
[Annotator "TA"]
[PlyCount "86"]
[EventDate "2024.12.27"]
[EventType "swiss"]
[EventCountry "GER"]
[SourceTitle "playchess.com"]
[Source "ChessBase"]
[SourceQuality "1"]
[TimeControl "40/5400+30:1800+30"]

{[%evp 14,86,25,24,21,18,10,-9,-9,-19,0,0,4,-14,0,0,0,0,0,0,0,0,0,0,0,0,0,0,0,-13,0,0,25,17,1,14,52,65,55,39,147,149,179,184,179,182,221,179,185,156,202,127,125,118,128,56,117,0,0,0,0,0,0,0,0,0,0,0,0,0,0,0,8,5,10]} 1. d4 {[%emt 0:00:40]} d5 {[%emt 0:02:11]} 2. c4 {[%emt 0:00:34]} e6 {[%emt 0:00:18]} 3. Nf3 {[%emt 0:00:27]} Nf6 {[%emt 0:00:49]} 4. g3 {[%emt 0:00:18]} b6 {[%emt 0:04:59]} 5. Bg2 {[%emt 0:00:35]} Bb7 {[%emt 0:00:10]} 6. O-O {[%emt 0:00:46]} Nbd7 {[%emt 0:01:14]} 7. Qa4 {[%emt 0:02:42]} Bd6 {[%emt 0:05:15]} 8. Ne5 {[%emt 0:05:01]} O-O {[%emt 0:01:28]} 9. Bf4 {[%emt 0:02:46]} Bxe5 {[%emt 0:09:01]} 10. dxe5 {[%emt 0:00:33]} Nh5 {[%emt 0:00:50]} 11. Rd1 {[%emt 0:01:28][%cal Rc4d5]} Nxf4 {[%emt 0:01:15]} 12. gxf4 {[%emt 0:00:06]} c6 {[%emt 0:03:38]} 13. Nc3 {[%emt 0:06:48][%cal Bb1c3,Bc3e2,Be2d4,Bd4f5][%mdl 32]} Qh4 {[%emt 0:01:12][%cal Od7c5]} 14. cxd5 {[%emt 0:03:18]} exd5 {[%emt 0:06:27]} 15. e3 {[%emt 0:03:45]} ({Wrong is} 15. Nxd5 $2 Nc5 16. Qa3 cxd5 $19) 15... Nc5 {[%emt 0:05:28]} 16. Qc2 {[%emt 0:04:20]} a5 {[%emt 0:04:27]} 17. Ne2 {[%emt 0:03:50]} f6 {[%emt 0:02:11] Threatens to win with ...fxe5.} 18. Nd4 {[%emt 0:05:00]} Rae8 {[%emt 0:02:47]} 19. e6 {[%emt 0:03:05]} f5 {[%emt 0:10:57]} 20. Nxf5 {[%emt 0:01:04]} Qf6 {[%emt 0:00:02]} 21. Ng3 {[%emt 0:00:44]} Rxe6 {[%emt 0:01:46]} 22. Rab1 {[%emt 0:01:30]} a4 {[%emt 0:01:42]} 23. b4 {[%emt 0:04:26]} axb3 {[%emt 0:00:02]} 24. axb3 {[%emt 0:00:05]} Rd6 {[%emt 0:00:36]} 25. b4 $36 {[%emt 0:01:06][%mdl 2048] White has some pressure.} Ne6 {[%emt 0:00:32]} 26. Ra1 {[%emt 0:08:56]} Rdd8 {[%emt 0:03:02]} (26... Rd7 $14) 27. Ra7 $16 {[%emt 0:01:57]} Rf7 {[%emt 0:00:25] [#]} 28. f5 $1 {[%emt 0:02:44]} Nf8 {[%emt 0:01:22] [#]} 29. b5 $1 {[%emt 0:03:07][%mdl 512]} Qd6 {[%emt 0:09:50]} (29... cxb5 30. Rxb7) 30. bxc6 {[%emt 0:05:46]} Qxc6 {[%emt 0:00:14]} 31. Qb2 {[%emt 0:00:37]} Rd6 {[%emt 0:04:48]} (31... Rfd7 $16 32. h4 Rf7) 32. Rc1 {[%emt 0:02:25]} Qe8 {[%emt 0:01:57]} 33. Qa3 {[%emt 0:02:38] White is much more active.} Qb8 {[%emt 0:03:10]} 34. Bf1 {[%emt 0:00:08]} (34. Rd1 $16) 34... g6 {[%emt 0:02:25]} (34... Rd8 $14) 35. Bd3 {[%emt 0:00:45]} (35. e4 $16 {and e5 should not be overlooked} Rdd7 36. Rd1 (36. Bb5 Bc6 $16)) 35... gxf5 $11 {[%emt 0:00:31]} 36. Bxf5 {[%emt 0:00:15][%cal Oa7b7]} Rdf6 $1 {[%emt 0:00:32]} 37. e4 {[%emt 0:05:25]} dxe4 {[%emt 0:00:45]} 38. Bxe4 {[%emt 0:02:56]} Bxe4 {[%emt 0:01:43]} 39. Rxf7 {[%emt 0:00:07]} Rxf7 {[%emt 0:00:05]} 40. Nxe4 {[%emt 0:00:04]} Qf4 {[%emt 0:00:46]} 41. Qe3 {[%emt 0:30:33]} Qxe3 {[%emt 0:33:16]} 42. fxe3 {[%emt 0:00:06]} Rb7 {[%emt 0:00:33]} 43. Kf2 {[%emt 0:00:41]} Kg7 {[%emt 0:01:27]} 1/2-1/2